Workbook

Sheet Startseite
N3: Basisrente für Selbstständige
N6: Die Basisrente ist für Selbstständige die einzige geförderte Form der Altersvorsorge.
B9: Zusätzlich kann die Basisrente mit Zuzahlungen flexibel bespart werden. Dies ist gerade für Selbstständige mit schwankenden Jahreseinkünften sehr interessant.
B14: Folgende Berechnungsmöglichkeiten stehen Ihnen zur Verfügung.
B17: 1. Berechnung der Steuerersparnis durch Zuzahlung
B21: 2. Berechnung eines Zuzahlungsbetrags zur Vermeidung von Nachzahlung
B25: 3. Rendite durch Förderung ohne Berücksichtigung von Überschüssen
B32: Geben Sie für den Ausdruck hier den Namen des Interessenten ein. Berechnung erfolgt für:
B34: Herrn | H34: Martin | S34: Muster
B35: Anrede | H35: Vorname | S35: Nachname

Sheet St Ersp
N3: Basisrente für Selbstständige -
N6: flexibel und als einzige Form der Altersvorsorge steuerlich gefördert
B9: Mit flexiblen Zuzahlungen sparen Sie Steuern und sorgen gleichzeitig für Ihr Alter vor.
B14: Berechnung Ihrer Steuerersparnis durch Ihre Zuzahlung
B17: Zuzahlung zur Basisrente | W17: 10000
B19: Berechnung erfolgt für das Jahr | Z19: =YEAR(TODAY()) -> 2019
B21: Voraussichtliches zu versteuerndes Einkommen | W21: 100000
B23: Kirchensteuersatz | Z23: 0.09
B25: Anzuwendende Steuertabelle | W25: Grundtabelle
B27: Ihre voraussichtliche Steuerersparnis beträgt* | Q27: =IF(AND(W17>22172,W25="Grundtabelle"),"Maximalbeitrag von 22.766 EUR überschritten.",(VLOOKUP(Z19,Steuerber1!$K$3:$Q$11,7,FALSE))) -> 4231.92
B37: * Berechnung auf Basis Ihrer Angaben und des am 1.1.2019 gültigen Steuertarifs.

Sheet EB ZZ
N3: Basisrente für Selbstständige -
N6: flexibel und als einzige Form der Altersvorsorge steuerlich gefördert
B9: Mit flexiblen Zuzahlungen sparen Sie Steuern und sorgen gleichzeitig für Ihr Alter vor.
B14: Berechnung Ihrer Zuzahlung zur Vermeidung einer Steuernachzahlung
B17: Zu versteuerndes Einkommen im Vorjahr | W17: 70000
B19: Voraussichtlicher Mehrgewinn in diesem Jahr | W19: 10000
B21: Berechnung erfolgt für das Jahr | Z21: =YEAR(TODAY()) -> 2019
B23: Kirchensteuersatz | Z23: 0.09
B25: Anzuwendende Steuertabelle | W25: Grundtabelle
B27: Ihre voraussichtliche Nachzahlung beträgt | W27: =VLOOKUP(Z21,Steuerber2!$K$3:$Q$12,7,FALSE) -> 4809
B29: Im laufenden Jahr bereits geleistete Beiträge | W29: 0
B31: Noch mögliche Zuzahlung | W31: =IF(W25="Grundtabelle",MIN(W19/VLOOKUP(Z21,Steuerber3!$K$3:$M$12,3,FALSE),22766-W29),MIN(W19/VLOOKUP(Z21,Steuerber3!$K$3:$M$12,3,FALSE),45532-W29)) -> 11363.63636
B33: Dadurch zu vermeidende Nachzahlung | W33: =VLOOKUP(Z21,Steuerber22!$K$3:$Q$11,7,FALSE) -> 4809
B39: * Berechnung auf Basis Ihrer Angaben und des am 1.1.2019 gültigen Steuertarifs.

Sheet Rend
H1: Eingang
N3: Basisrente für Selbstständige -
N6: Die Basisrente ist für Selbstständige die einzige geförderte Form der Altersvorsorge.
B9: =CONCATENATE("Im Jahr ",$Z$21," wirken sich bereits ",VLOOKUP($Z$21,Steuerber3!$K$3:$M$12,3,FALSE)*100,"% der Beiträge, also bis zu ",ROUNDDOWN(24305*VLOOKUP($Z$21,Steuerber3!$K$3:$M$12,3,FALSE),0)," EUR bzw. ",ROUNDDOWN(48608*VLOOKUP($Z$21,Steuerber3!$K$3:$M$12,3,FALSE),0)," EUR, steuermindernd aus. Bis 2025 werden daraus noch 100%.") -> Im Jahr 2019 wirken sich bereits 88% der Beiträge, also bis zu 21388 EUR bzw. 42775 EUR, steuermindernd aus. Bis 2025 werden daraus noch 100%.
B13: Berechnen Sie welchen Zins eine ungeförderte Anlage erzielen müsste um bei gleichem Nettoaufwand die Garantie der Basisrente zu erbringen.
B17: Jahresbeitrag zur Basisrente ohne Zusatzversicherungen | W17: 1200
B19: Laufzeit in Jahren | Z19: 32
B21: Berechnung erfolgt für das Jahr | Z21: =YEAR(TODAY()) -> 2019
B23: Summe der Beiträge ohne Zusatzversicherungen | Q23: x | R23: 0.8 | S23: Garantie | W23: =IF(AND(W17>0,Z19>0),W17*Z19,"")*R23 -> 30720
B25: Voraussichtliches zu versteuerndes Einkommen | W25: 70000
B27: Kirchensteuersatz | Z27: 0.09
B29: Anzuwendende Steuertabelle | W29: Grundtabelle
B33: Die Steuerersparnis über die Laufzeit beträgt | Q33: =IF(AND(W17>22172,W29="Grundtabelle"),"Maximalbeitrag von 22.172 EUR überschritten.",IF(AND($W$17>0,$Z$19>0,$W$25>0,$Z$27<>"",Rend!$W$29<>"",Steuerber3!$C$30=10000),Steuerber3!$C$18,"")) -> 18226.11
B35: Der Nettoaufwand über die Laufzeit beträgt | W35: =IF(Q33="Maximalbeitrag von 22.172 EUR überschritten."," ",IF(AND($W$17>0,$Z$19>0,$W$25>0,$Z$27<>"",Rend!$W$29<>"",Steuerber3!$C$30=10000),Steuerber3!$C$20,"")) -> 20173.89
B37: Der Zinssatz, den eine ungeförderte Anlage erzielen müsste, beträgt | Z37: =IF(Q33="Maximalbeitrag von 22.172 EUR überschritten."," ",IF(AND($W$17>0,$Z$19>0,$W$25>0,$Z$27<>"",Rend!$W$29<>"",Steuerber3!$C$30=10000),ROUND(Steuerber3!$C$22,4),"")) -> 0.0241
B39: * Berechnung auf Basis Ihrer Angaben und des am 1.1.2019 gültigen Steuertarifs.

Sheet DruckStErsp
O3: Basisrente für Selbstständige –
O5: ='St Ersp'!N6 -> flexibel und als einzige Form der Altersvorsorge steuerlich gefördert
C8: =Rend!B9 -> Im Jahr 2019 wirken sich bereits 88% der Beiträge, also bis zu 21388 EUR bzw. 42775 EUR, steuermindernd aus. Bis 2025 werden daraus noch 100%.
C12: ='St Ersp'!B9 -> Mit flexiblen Zuzahlungen sparen Sie Steuern und sorgen gleichzeitig für Ihr Alter vor.
C15: =CONCATENATE("Berechnung für ",Startseite!B34," ",Startseite!H34," ",Startseite!S34) -> Berechnung für Herrn Martin Muster | AA15: =TODAY() -> 2019-12-03
C17: ='St Ersp'!B19 -> Berechnung erfolgt für das Jahr | AB17: ='St Ersp'!Z19 -> 2019
C19: Basisrente
C21: ='St Ersp'!B17 -> Zuzahlung zur Basisrente | Z21: ='St Ersp'!W17 -> 10000 | AD21: EUR
C23: ='St Ersp'!B21 -> Voraussichtliches zu versteuerndes Einkommen | Z23: ='St Ersp'!W21 -> 100000 | AD23: EUR
C25: ='St Ersp'!B23 -> Kirchensteuersatz | AC25: ='St Ersp'!Z23 -> 0.09
C27: ='St Ersp'!B25 -> Anzuwendende Steuertabelle | Y27: ='St Ersp'!W25 -> Grundtabelle
C29: zu versteuerndes Einkommen nach Zuzahlung | Z29: =VLOOKUP(AB17,Steuerber1!$K$3:$O$11,5,FALSE) -> 91200 | AD29: EUR
C31: ='St Ersp'!B27 -> Ihre voraussichtliche Steuerersparnis beträgt* | AA31: ='St Ersp'!Q27 -> 4231.92 | AD31: EUR
C43: Um die Option der flexiblen Zuzahlung nutzen zu können benötigen Sie einen Grundvertrag mit überschaubarer laufender Beitragszahlung.
AO44: Jahr | AP44: Zuzahlung | AQ44: Steuerlich wirksam | AR44: Steuerersparnis | AS44: Nettoaufwand
AO45: =AB17 -> 2019 | AP45: =Z21 -> 10000 | AQ45: =VLOOKUP(AB17,Steuerber1!$K$3:$M$11,3,FALSE)*AP45 -> 8800 | AR45: =AA31 -> 4231.92 | AS45: =AP45-AR45 -> 5768.08
B46: * | C46: Berechnung auf Basis Ihrer Angaben und des am 1.1.2019 gültigen Steuertarifs inkl. Solidaritätszuschlag und ggfs. Kirchensteuer ohne Berücksichtigung von Kindern und Kappungssätzen.
B48: =C15&" Steuerersparnis "&AA15 -> Berechnung für Herrn Martin Muster Steuerersparnis 43802

Sheet DruckEBZZ
O3: Basisrente für Selbstständige –
O5: ='St Ersp'!N6 -> flexibel und als einzige Form der Altersvorsorge steuerlich gefördert
C8: =Rend!B9 -> Im Jahr 2019 wirken sich bereits 88% der Beiträge, also bis zu 21388 EUR bzw. 42775 EUR, steuermindernd aus. Bis 2025 werden daraus noch 100%.
C12: ='St Ersp'!B9&" Mit Zuzahlungen vermeiden Sie Steuernachzahlungen für das laufende Jahr und erhöhte Vorauszahlungen im nächsten Jahr." -> Mit flexiblen Zuzahlungen sparen Sie Steuern und sorgen gleichzeitig für Ihr Alter vor. Mit Zuzahlungen vermeiden Sie Steuernachzahlungen für das laufende Jahr und erhöhte Vorauszahlungen im nächsten Jahr.
C16: =CONCATENATE("Berechnung für ",Startseite!B34," ",Startseite!H34," ",Startseite!S34) -> Berechnung für Herrn Martin Muster | AA16: =TODAY() -> 2019-12-03
C18: ='EB ZZ'!B21 -> Berechnung erfolgt für das Jahr | AB18: ='EB ZZ'!Z21 -> 2019
C20: Basisrente
C22: ='EB ZZ'!B17 -> Zu versteuerndes Einkommen im Vorjahr | Z22: ='EB ZZ'!W17 -> 70000 | AD22: EUR
C24: ='EB ZZ'!B19 -> Voraussichtlicher Mehrgewinn in diesem Jahr | Z24: ='EB ZZ'!W19 -> 10000 | AD24: EUR
C26: ='EB ZZ'!B23 -> Kirchensteuersatz | Z26: ='EB ZZ'!Z23 -> 0.09
C28: ='EB ZZ'!B25 -> Anzuwendende Steuertabelle | Y28: ='EB ZZ'!W25 -> Grundtabelle
C30: ='EB ZZ'!B27 -> Ihre voraussichtliche Nachzahlung beträgt | Z30: ='EB ZZ'!W27 -> 4809 | AD30: EUR
C32: ='EB ZZ'!B29 -> Im laufenden Jahr bereits geleistete Beiträge | Z32: ='EB ZZ'!W29 -> 0 | AD32: EUR
C34: ='EB ZZ'!B31 -> Noch mögliche Zuzahlung | Z34: ='EB ZZ'!W31 -> 11363.63636 | AD34: EUR
C36: ='EB ZZ'!B33 -> Dadurch zu vermeidende Nachzahlung | Z36: ='EB ZZ'!W33 -> 4809 | AD36: EUR
AN42: Mehrgewinn | AO42: =Z24 -> 10000
AN43: voraussichtliche Nachzahlung | AO43: =Z30 -> 4809
C44: Um die Option der flexiblen Zuzahlung nutzen zu können benötigen Sie einen Grundvertrag mit überschaubarer laufender Beitragszahlung. | AN44: noch mögliche Zuzahlung | AO44: =Z34 -> 11363.63636
AN45: vermeidbare Nachzahlung | AO45: =Z36 -> 4809
AN46: Jahr | AO46: =AB18 -> 2019
B47: * | C47: Berechnung auf Basis Ihrer Angaben und des am 1.1.2019 gültigen Steuertarifs inkl. Solidaritätszuschlag und ggfs. Kirchensteuer ohne Berücksichtigung von Kindern und Kappungssätzen.
B50: =C16&" Nachzahlungsvermeidung "&AA16 -> Berechnung für Herrn Martin Muster Nachzahlungsvermeidung 43802

Sheet DruckRend
O3: Basisrente für Selbstständige –
O5: =Rend!N6 -> Die Basisrente ist für Selbstständige die einzige geförderte Form der Altersvorsorge.
C8: =Rend!B9 -> Im Jahr 2019 wirken sich bereits 88% der Beiträge, also bis zu 21388 EUR bzw. 42775 EUR, steuermindernd aus. Bis 2025 werden daraus noch 100%.
C10: Deshalb erzielen Selbstständige mit der Basisrente schon ohne Berücksichtigung einer Verzinsung/Wertentwicklung eine ansehnliche Rendite.
C15: =CONCATENATE("Berechnung für ",Startseite!B34," ",Startseite!H34," ",Startseite!S34) -> Berechnung für Herrn Martin Muster | AA15: =TODAY() -> 2019-12-03
C17: Basisrente
C19: Bei jährlichen Beiträgen (ohne Beiträge zu Zusatzversicherungen) von | Z19: =Rend!W17 -> 1200 | AD19: EUR
C21: ergibt sich, ohne Berücksichtigung einer Verzinszung, bei einer Laufzeit von | AB21: =Rend!Z19 -> 32 | AD21: Jahren
C23: ="bei "&TEXT(Rend!R23,"0%")&" Garantie der eingezahlten Beiträge eine Leistung von" -> bei 80% Garantie der eingezahlten Beiträge eine Leistung von | Z23: =Rend!W23 -> 30720 | AD23: EUR
C25: Bei einem zu versteuernden Einkommen von | Z25: =Rend!W25 -> 70000 | AD25: EUR
C27: einem Kirchensteuersatz von | AB27: =Rend!Z27 -> 0.09
C29: =CONCATENATE("beträgt bei Anwendung der ",'St Ersp'!W25," die anfängliche Steuerersparnis") -> beträgt bei Anwendung der Grundtabelle die anfängliche Steuerersparnis | AA29: =ROUND(Steuerber3!Q3,0) -> 508 | AD29: EUR
C31: =CONCATENATE("Bei unverändertem Einkommen sind das in ",AB21," Jahren ca.") -> Bei unverändertem Einkommen sind das in 32 Jahren ca. | Z31: =Rend!Q33 -> 18226.11 | AD31: EUR
C33: Entsprechend beträgt der Nettoaufwand für die Altersvorsorge ca. | Z33: =Rend!W35 -> 20173.89 | AD33: EUR
C35: Vergleichszinssatz | AA35: =Rend!Z37 -> 0.0241
C37: =CONCATENATE("Um bei gleichem Nettoaufwand mit einer ungeförderten Anlage nach ",AB21," Jahren ein Altersvorsorgekapital von ",Z23," EUR zu erreichen, müsste die Anlage eine laufende Verzinsung in Höhe von ",Rend!Z37*100," %* erzielen") -> Um bei gleichem Nettoaufwand mit einer ungeförderten Anlage nach 32 Jahren ein Altersvorsorgekapital von 30720 EUR zu erreichen, müsste die Anlage eine laufende Verzinsung in Höhe von 2,41 %* erzielen
C42: Mit der Basisrente der Zurich haben Sie natürlich die Chance auf eine höhere Rendite.
B48: * | C48: Berechnung auf Basis Ihrer Angaben und des am 1.1.2019 gültigen Steuertarifs inkl. Solidaritätszuschlag und ggfs. Kirchensteuer ohne Berücksichtigung von Kindern und Kappungssätzen.
B51: =C15&" Rendite Basisrente "&AA15 -> Berechnung für Herrn Martin Muster Rendite Basisrente 43802

Sheet Steuerber1
B2: zu versteuerndes Einkommen | C2: ='St Ersp'!W21 -> 100000 | J2: Jahr | K2: Beitragsjahr | L2: Beitrag | M2: absetzbar | N2: verm. zvE | O2: zvE | P2: Steuer neu ohne SolZ | Q2: Ersparnis mit SolZ | R2: Nettoaufwand | S2: Nettoaufwand verzinst
J3: 1 | K3: 2019 | L3: =IF(K3<$K$3+$C$10,$C$12,0) -> 10000 | M3: 0.88 | N3: =IF(K3<$K$3+$C$10,L3*M3,0) -> 8800 | O3: =IF(K3<$K$3+$C$10,zvE-N3,0) -> 91200 | P3: =ROUNDDOWN(IF((O3/$D$6)<(9168+1),0,IF((O3/$D$6)<(14254+1),(980.14*(((O3/$D$6)-9169)/10000)+1400)*((O3/$D$6)-9168)/10000,IF((O3/$D$6)<(55960+1),(216.16*(((O3/$D$6)-14255)/10000)+2397)*((O3/$D$6)-14255)/10000+965.58,IF((O3/$D$6)<(265326+1),(O3/$D$6)*0.42-8780.9,(O3/$D$6)*0.45-16740.68)))),0)*$D$6 -> 29523 | Q3: =IF(K3<$K$3+$C$10,ROUNDDOWN(($C$32-P3)*(1.055+KiSt),2),0) -> 4231.92 | R3: =IF(K3<$K$3+$C$10,L3-Q3,0) -> 5768.08 | S3: =IF(K3<$K$3+$C$10,ROUNDDOWN(R3*(1+$C$22),2),0) -> 6604.41 | U3: Jahr 2019
B4: Kirchensteuersatz | C4: ='St Ersp'!Z23 -> 0.09 | J4: 2 | K4: 2020 | L4: =IF(K4<$K$3+$C$10,$C$12,0) -> 10000 | M4: 0.9 | N4: =IF(K4<$K$3+$C$10,L4*M4,0) -> 9000 | O4: 91000 | P4: =ROUNDDOWN(IF((O4/$D$6)<(9168+1),0,IF((O4/$D$6)<(14254+1),(980.14*(((O4/$D$6)-9169)/10000)+1400)*((O4/$D$6)-9168)/10000,IF((O4/$D$6)<(55960+1),(216.16*(((O4/$D$6)-14255)/10000)+2397)*((O4/$D$6)-14255)/10000+965.58,IF((O4/$D$6)<(265326+1),(O4/$D$6)*0.42-8780.9,(O4/$D$6)*0.45-16740.68)))),0)*$D$6 -> 29439 | Q4: 4328.1 | R4: =IF(K4<$K$3+$C$10,L4-Q4,0) -> 5671.9 | S4: =IF(K4<$K$3+$C$10,ROUNDDOWN((R4+S3)*(1+$C$22),2),0) -> 14056.29 | U4: bis 9.168 Euro | V4: (Grundfreibetrag): 0
J5: 3 | K5: 2021 | L5: 10000 | M5: 0.92 | N5: 9200 | O5: 90800 | P5: 29355 | Q5: 4424.28 | R5: 5575.72 | S5: =IF(K5<$K$3+$C$10,ROUNDDOWN((R5+S4)*(1+$C$22),2),0) -> 22478.52 | U5: 9.168 Euro bis 14.254 Euro: | V5: ESt = (980.14 · Y + 1.400) · Y
B6: Familienstand | D6: =IF('St Ersp'!W25="Grundtabelle",1,2) -> 1 | J6: 4 | K6: 2022 | L6: 10000 | M6: 0.94 | N6: 9400 | O6: 90600 | P6: 29271 | Q6: 4520.46 | R6: 5479.54 | S6: 32011.79 | V6: Y = (zvE - 9.168) / 10.000
J7: 5 | K7: 2023 | L7: 10000 | M7: 0.96 | N7: 9600 | O7: 90400 | P7: 29187 | Q7: 4616.64 | R7: 5383.36 | S7: 42817.19 | U7: 14.255 Euro bis 55.960 Euro: | V7: ESt = (216.16 × Z + 2.397) × Z + 965.58
B8: Basisrente | J8: 6 | K8: 2024 | L8: 10000 | M8: 0.98 | N8: 9800 | O8: 90200 | P8: 29103 | Q8: 4712.82 | R8: 5287.18 | S8: 55079.18 | V8: Z = (zvE - 14.254) / 10.000
J9: 7 | K9: 2025 | L9: 10000 | M9: 1 | N9: 10000 | O9: 90000 | P9: 29019 | Q9: 4809 | R9: 5191 | S9: 69008.95 | U9: 54.950 Euro bis 265.326 Euro: | V9: ESt = 0,42 × zvE - 8780.9
B10: Laufzeit | C10: ='St Ersp'!Z19 -> 2019 | J10: 8 | K10: 2026 | L10: 10000 | M10: 1 | N10: 10000 | O10: 90000 | P10: 29019 | Q10: 4809 | R10: 5191 | S10: 84958.44 | U10: ab 265.327 Euro: | V10: ESt = 0,45 × zvE - 16740.68
J11: 9 | K11: 2027 | L11: 10000 | M11: 1 | N11: 10000 | O11: 90000 | P11: 29019 | Q11: 4809 | R11: 5191 | S11: 103220.5
B12: Jahresbeitrag | C12: ='St Ersp'!W17 -> 10000 | J12: 10 | K12: 2028 | L12: 10000 | M12: 1 | N12: 10000 | O12: 90000 | P12: 29019 | Q12: 4809 | R12: 5191 | S12: 124130.44 | U12: In §39b Absatz 2 Satz 7 zweiter Halbsatz wird die Angabe "10440" durch
J13: 11 | K13: 2029 | L13: 10000 | M13: 1 | N13: 10000 | O13: 90000 | P13: 29019 | Q13: 4809 | R13: 5191 | S13: 148072.18 | U13: die Angabe "10635" ersetzt.
B14: Beitragssumme = Garantie | C14: =C10*C12 -> 20190000 | J14: 12 | K14: 2030 | L14: 10000 | M14: 1 | N14: 10000 | O14: 90000 | P14: 29019 | Q14: 4809 | R14: 5191 | S14: 175485.31
J15: 13 | K15: 2031 | L15: 10000 | M15: 1 | N15: 10000 | O15: 90000 | P15: 29019 | Q15: 4809 | R15: 5191 | S15: 206873.16
J16: 14 | K16: 2032 | L16: 10000 | M16: 1 | N16: 10000 | O16: 90000 | P16: 29019 | Q16: 4809 | R16: 5191 | S16: 242812.04
J17: 15 | K17: 2033 | L17: 10000 | M17: 1 | N17: 10000 | O17: 90000 | P17: 29019 | Q17: 4809 | R17: 5191 | S17: 283961.82
B18: Steuerersparnis gesamt | C18: =Q47 -> 209576.22 | J18: 16 | K18: 2034 | L18: 10000 | M18: 1 | N18: 10000 | O18: 90000 | P18: 29019 | Q18: 4809 | R18: 5191 | S18: 331078.05
J19: 17 | K19: 2035 | L19: 10000 | M19: 1 | N19: 10000 | O19: 90000 | P19: 29019 | Q19: 4809 | R19: 5191 | S19: 385025.81
B20: Nettoeinzahlung gesamt | C20: =R47 -> 230423.78 | J20: 18 | K20: 2036 | L20: 10000 | M20: 1 | N20: 10000 | O20: 90000 | P20: 29019 | Q20: 4809 | R20: 5191 | S20: 446795.64
J21: 19 | K21: 2037 | L21: 10000 | M21: 1 | N21: 10000 | O21: 90000 | P21: 29019 | Q21: 4809 | R21: 5191 | S21: 517521.68
B22: Vergleichsverzinsung | C22: 0.1449933292 | J22: 20 | K22: 2038 | L22: 10000 | M22: 1 | N22: 10000 | O22: 90000 | P22: 29019 | Q22: 4809 | R22: 5191 | S22: 598502.53
J23: 21 | K23: 2039 | L23: 10000 | M23: 1 | N23: 10000 | O23: 90000 | P23: 29019 | Q23: 4809 | R23: 5191 | S23: 691225.06
J24: 22 | K24: 2040 | L24: 10000 | M24: 1 | N24: 10000 | O24: 90000 | P24: 29019 | Q24: 4809 | R24: 5191 | S24: 797391.74
J25: 23 | K25: 2041 | L25: 10000 | M25: 1 | N25: 10000 | O25: 90000 | P25: 29019 | Q25: 4809 | R25: 5191 | S25: 918951.88
J26: 24 | K26: 2042 | L26: 10000 | M26: 1 | N26: 10000 | O26: 90000 | P26: 29019 | Q26: 4809 | R26: 5191 | S26: 1058137.43
J27: 25 | K27: 2043 | L27: 10000 | M27: 1 | N27: 10000 | O27: 90000 | P27: 29019 | Q27: 4809 | R27: 5191 | S27: 1217503.95
J28: 26 | K28: 2044 | L28: 10000 | M28: 1 | N28: 10000 | O28: 90000 | P28: 29019 | Q28: 4809 | R28: 5191 | S28: 1399977.56
J29: 27 | K29: 2045 | L29: 10000 | M29: 1 | N29: 10000 | O29: 90000 | P29: 29019 | Q29: 4809 | R29: 5191 | S29: 1608908.62
B30: Wert für Zielwertsuche | C30: =IF(C14>0,ROUND(C14/S47*10000,2),"") -> 12277.48 | J30: 28 | K30: 2046 | L30: 10000 | M30: 1 | N30: 10000 | O30: 90000 | P30: 29019 | Q30: 4809 | R30: 5191 | S30: 1848133.29
J31: 29 | K31: 2047 | L31: 10000 | M31: 1 | N31: 10000 | O31: 90000 | P31: 29019 | Q31: 4809 | R31: 5191 | S31: 2122043.94
B32: Steuer vor Basisrente ohne SolZ | C32: =ROUNDDOWN(IF((C2/D6)<(9168+1),0,IF((C2/D6)<(14254+1),(980.14*(((C2/D6)-9169)/10000)+1400)*((C2/D6)-9168)/10000,IF((C2/D6)<(55960+1),(216.16*(((C2/D6)-14255)/10000)+2397)*((C2/D6)-14255)/10000+965.58,IF((C2/D6)<(265326+1),(C2/D6)*0.42-8780.9,(C2/D6)*0.45-16740.68)))),0)*D6 -> 33219 | J32: 30 | K32: 2048 | L32: 10000 | M32: 1 | N32: 10000 | O32: 90000 | P32: 29019 | Q32: 4809 | R32: 5191 | S32: 2435669.81
J33: 31 | K33: 2049 | L33: 10000 | M33: 1 | N33: 10000 | O33: 90000 | P33: 29019 | Q33: 4809 | R33: 5191 | S33: 2794769.34
J34: 32 | K34: 2050 | L34: 10000 | M34: 1 | N34: 10000 | O34: 90000 | P34: 29019 | Q34: 4809 | R34: 5191 | S34: 3205935.91
J35: 33 | K35: 2051 | L35: 10000 | M35: 1 | N35: 10000 | O35: 90000 | P35: 29019 | Q35: 4809 | R35: 5191 | S35: 3676718.89
J36: 34 | K36: 2052 | L36: 10000 | M36: 1 | N36: 10000 | O36: 90000 | P36: 29019 | Q36: 4809 | R36: 5191 | S36: 4215762.26
J37: 35 | K37: 2053 | L37: 10000 | M37: 1 | N37: 10000 | O37: 90000 | P37: 29019 | Q37: 4809 | R37: 5191 | S37: 4832963.32
J38: 36 | K38: 2054 | L38: 10000 | M38: 1 | N38: 10000 | O38: 90000 | P38: 29019 | Q38: 4809 | R38: 5191 | S38: 5539654.42
J39: 37 | K39: 2055 | L39: 10000 | M39: 1 | N39: 10000 | O39: 90000 | P39: 29019 | Q39: 4809 | R39: 5191 | S39: 6348811.01
J40: 38 | K40: 2056 | L40: 10000 | M40: 1 | N40: 10000 | O40: 90000 | P40: 29019 | Q40: 4809 | R40: 5191 | S40: 7275289.91
J41: 39 | K41: 2057 | L41: 10000 | M41: 1 | N41: 10000 | O41: 90000 | P41: 29019 | Q41: 4809 | R41: 5191 | S41: 8336102.07
J42: 40 | K42: 2058 | L42: 10000 | M42: 1 | N42: 10000 | O42: 90000 | P42: 29019 | Q42: 4809 | R42: 5191 | S42: 9550724.92
J43: 41 | K43: 2059 | L43: 10000 | M43: 1 | N43: 10000 | O43: 90000 | P43: 29019 | Q43: 4809 | R43: 5191 | S43: 10941459.98
J44: 42 | K44: 2060 | L44: 10000 | M44: 1 | N44: 10000 | O44: 90000 | P44: 29019 | Q44: 4809 | R44: 5191 | S44: 12533842.34
J45: 43 | K45: 2061 | L45: 10000 | M45: 1 | N45: 10000 | O45: 90000 | P45: 29019 | Q45: 4809 | R45: 5191 | S45: 14357109.52
J46: 44 | K46: 2062 | L46: 10000 | M46: 1 | N46: 10000 | O46: 90000 | P46: 29019 | Q46: 4809 | R46: 5191 | S46: 16444738.28
Q47: =SUM(Q3:Q46) -> 209576.22 | R47: =SUM(R3:R46) -> 230423.78 | S47: =ROUND(MAX($S$3:$S$46),0) -> 16444738

Sheet Steuerber2
B2: zu versteuerndes Einkommen | C2: ='EB ZZ'!W17+'EB ZZ'!W19 -> 80000 | K2: Beitragsjahr | L2: Mehrgewinn | M2: absetzbar | N2: verm. zvE | O2: zvE | P2: Steuer neu ohne SolZ | Q2: Ersparnis mit SolZ | R2: Nettoaufwand | S2: Nettoaufwand verzinst
J3: 1 | K3: 2019 | L3: =IF(K3<$K$3+$C$10,$C$12,0) -> 10000 | M3: 1 | N3: =IF(K3<$K$3+$C$10,L3*M3,0) -> 10000 | O3: =IF(K3<$K$3+$C$10,zvE-N3,0) -> 70000 | P3: =ROUNDDOWN(IF((O3/$D$6)<(9168+1),0,IF((O3/$D$6)<(14254+1),(980.14*(((O3/$D$6)-9169)/10000)+1400)*((O3/$D$6)-9168)/10000,IF((O3/$D$6)<(55960+1),(216.16*(((O3/$D$6)-14255)/10000)+2397)*((O3/$D$6)-14255)/10000+965.58,IF((O3/$D$6)<(265326+1),(O3/$D$6)*0.42-8780.9,(O3/$D$6)*0.45-16740.68)))),0)*$D$6 -> 20619 | Q3: =IF(K3<$K$3+$C$10,ROUNDDOWN(($C$32-P3)*(1.055+KiSt),2),0) -> 4809 | R3: =IF(K3<$K$3+$C$10,L3-Q3,0) -> 5191 | S3: =IF(K3<$K$3+$C$10,ROUNDDOWN(R3*(1+$C$22),2),0) -> 5943.66 | U3: Jahr 2019
B4: Kirchensteuersatz | C4: ='St Ersp'!Z23 -> 0.09 | J4: 2 | K4: 2020 | L4: =IF(K4<$K$3+$C$10,$C$12,0) -> 10000 | M4: 1 | N4: =IF(K4<$K$3+$C$10,L4*M4,0) -> 10000 | O4: 70000 | P4: =ROUNDDOWN(IF((O4/$D$6)<(9168+1),0,IF((O4/$D$6)<(14254+1),(980.14*(((O4/$D$6)-9169)/10000)+1400)*((O4/$D$6)-9168)/10000,IF((O4/$D$6)<(55960+1),(216.16*(((O4/$D$6)-14255)/10000)+2397)*((O4/$D$6)-14255)/10000+965.58,IF((O4/$D$6)<(265326+1),(O4/$D$6)*0.42-8780.9,(O4/$D$6)*0.45-16740.68)))),0)*$D$6 -> 20619 | Q4: 4809 | R4: =IF(K4<$K$3+$C$10,L4-Q4,0) -> 5191 | S4: =IF(K4<$K$3+$C$10,ROUNDDOWN((R4+S3)*(1+$C$22),2),0) -> 12749.11 | U4: bis 9.168 Euro | V4: (Grundfreibetrag): 0
J5: 3 | K5: 2021 | L5: 10000 | M5: 1 | N5: 10000 | O5: 70000 | P5: 20619 | Q5: 4809 | R5: 5191 | S5: =IF(K5<$K$3+$C$10,ROUNDDOWN((R5+S4)*(1+$C$22),2),0) -> 20541.3 | U5: 9.168 Euro bis 14.254 Euro: | V5: ESt = (980.14 · Y + 1.400) · Y
B6: Familienstand | D6: =IF('St Ersp'!W25="Grundtabelle",1,2) -> 1 | J6: 4 | K6: 2022 | L6: 10000 | M6: 1 | N6: 10000 | O6: 70000 | P6: 20619 | Q6: 4809 | R6: 5191 | S6: 29463.31 | V6: Y = (zvE - 9.168) / 10.000
J7: 5 | K7: 2023 | L7: 10000 | M7: 1 | N7: 10000 | O7: 70000 | P7: 20619 | Q7: 4809 | R7: 5191 | S7: 39678.95 | U7: 14.255 Euro bis 55.960 Euro: | V7: ESt = (216.16 × Z + 2.397) × Z + 965.58
B8: Basisrente | J8: 6 | K8: 2024 | L8: 10000 | M8: 1 | N8: 10000 | O8: 70000 | P8: 20619 | Q8: 4809 | R8: 5191 | S8: 51375.79 | V8: Z = (zvE - 14.254) / 10.000
J9: 7 | K9: 2025 | L9: 10000 | M9: 1 | N9: 10000 | O9: 70000 | P9: 20619 | Q9: 4809 | R9: 5191 | S9: 64768.59 | U9: 54.950 Euro bis 265.326 Euro: | V9: ESt = 0,42 × zvE - 8780.9
B10: Laufzeit | C10: ='St Ersp'!Z19 -> 2019 | J10: 8 | K10: 2026 | L10: 10000 | M10: 1 | N10: 10000 | O10: 70000 | P10: 20619 | Q10: 4809 | R10: 5191 | S10: 80103.26 | U10: ab 265.327 Euro: | V10: ESt = 0,45 × zvE - 16740.68
J11: 9 | K11: 2027 | L11: 10000 | M11: 1 | N11: 10000 | O11: 70000 | P11: 20619 | Q11: 4809 | R11: 5191 | S11: 97661.35
B12: Jahresbeitrag | C12: ='EB ZZ'!W19 -> 10000 | J12: 10 | K12: 2028 | L12: 10000 | M12: 1 | N12: 10000 | O12: 70000 | P12: 20619 | Q12: 4809 | R12: 5191 | S12: 117765.25 | U12: In §39b Absatz 2 Satz 7 zweiter Halbsatz wird die Angabe "10440" durch
J13: 11 | K13: 2029 | L13: 10000 | M13: 1 | N13: 10000 | O13: 70000 | P13: 20619 | Q13: 4809 | R13: 5191 | S13: 140784.08 | U13: die Angabe "10635" ersetzt.
B14: Beitragssumme = Garantie | C14: =C10*C12 -> 20190000 | J14: 12 | K14: 2030 | L14: 10000 | M14: 1 | N14: 10000 | O14: 70000 | P14: 20619 | Q14: 4809 | R14: 5191 | S14: 167140.49
J15: 13 | K15: 2031 | L15: 10000 | M15: 1 | N15: 10000 | O15: 70000 | P15: 20619 | Q15: 4809 | R15: 5191 | S15: 197318.4
J16: 14 | K16: 2032 | L16: 10000 | M16: 1 | N16: 10000 | O16: 70000 | P16: 20619 | Q16: 4809 | R16: 5191 | S16: 231871.91
J17: 15 | K17: 2033 | L17: 10000 | M17: 1 | N17: 10000 | O17: 70000 | P17: 20619 | Q17: 4809 | R17: 5191 | S17: 271435.45
B18: Steuerersparnis gesamt | C18: =Q47 -> 211596 | J18: 16 | K18: 2034 | L18: 10000 | M18: 1 | N18: 10000 | O18: 70000 | P18: 20619 | Q18: 4809 | R18: 5191 | S18: 316735.43
J19: 17 | K19: 2035 | L19: 10000 | M19: 1 | N19: 10000 | O19: 70000 | P19: 20619 | Q19: 4809 | R19: 5191 | S19: 368603.61
B20: Nettoeinzahlung gesamt | C20: =R47 -> 228404 | J20: 18 | K20: 2036 | L20: 10000 | M20: 1 | N20: 10000 | O20: 70000 | P20: 20619 | Q20: 4809 | R20: 5191 | S20: 427992.33
J21: 19 | K21: 2037 | L21: 10000 | M21: 1 | N21: 10000 | O21: 70000 | P21: 20619 | Q21: 4809 | R21: 5191 | S21: 495992.02
B22: Vergleichsverzinsung | C22: 0.1449933292 | J22: 20 | K22: 2038 | L22: 10000 | M22: 1 | N22: 10000 | O22: 70000 | P22: 20619 | Q22: 4809 | R22: 5191 | S22: 573851.21
J23: 21 | K23: 2039 | L23: 10000 | M23: 1 | N23: 10000 | O23: 70000 | P23: 20619 | Q23: 4809 | R23: 5191 | S23: 662999.46
J24: 22 | K24: 2040 | L24: 10000 | M24: 1 | N24: 10000 | O24: 70000 | P24: 20619 | Q24: 4809 | R24: 5191 | S24: 765073.61
J25: 23 | K25: 2041 | L25: 10000 | M25: 1 | N25: 10000 | O25: 70000 | P25: 20619 | Q25: 4809 | R25: 5191 | S25: 881947.84
J26: 24 | K26: 2042 | L26: 10000 | M26: 1 | N26: 10000 | O26: 70000 | P26: 20619 | Q26: 4809 | R26: 5191 | S26: 1015768.05
J27: 25 | K27: 2043 | L27: 10000 | M27: 1 | N27: 10000 | O27: 70000 | P27: 20619 | Q27: 4809 | R27: 5191 | S27: 1168991.3
J28: 26 | K28: 2044 | L28: 10000 | M28: 1 | N28: 10000 | O28: 70000 | P28: 20619 | Q28: 4809 | R28: 5191 | S28: 1344430.9
J29: 27 | K29: 2045 | L29: 10000 | M29: 1 | N29: 10000 | O29: 70000 | P29: 20619 | Q29: 4809 | R29: 5191 | S29: 1545308.07
B30: Wert für Zielwertsuche | C30: =IF(C14>0,ROUND(C14/S47*10000,2),"") -> 12771.01 | J30: 28 | K30: 2046 | L30: 10000 | M30: 1 | N30: 10000 | O30: 70000 | P30: 20619 | Q30: 4809 | R30: 5191 | S30: 1775311.09
J31: 29 | K31: 2047 | L31: 10000 | M31: 1 | N31: 10000 | O31: 70000 | P31: 20619 | Q31: 4809 | R31: 5191 | S31: 2038663.01
B32: Steuer vor Basisrente ohne SolZ | C32: =ROUNDDOWN(IF((C2/D6)<(9168+1),0,IF((C2/D6)<(14254+1),(980.14*(((C2/D6)-9169)/10000)+1400)*((C2/D6)-9168)/10000,IF((C2/D6)<(55960+1),(216.16*(((C2/D6)-14255)/10000)+2397)*((C2/D6)-14255)/10000+965.58,IF((C2/D6)<(265326+1),(C2/D6)*0.42-8780.9,(C2/D6)*0.45-16740.68)))),0)*D6 -> 24819 | J32: 30 | K32: 2048 | L32: 10000 | M32: 1 | N32: 10000 | O32: 70000 | P32: 20619 | Q32: 4809 | R32: 5191 | S32: 2340199.2
J33: 31 | K33: 2049 | L33: 10000 | M33: 1 | N33: 10000 | O33: 70000 | P33: 20619 | Q33: 4809 | R33: 5191 | S33: 2685456.13
J34: 32 | K34: 2050 | L34: 10000 | M34: 1 | N34: 10000 | O34: 70000 | P34: 20619 | Q34: 4809 | R34: 5191 | S34: 3080773.01
J35: 33 | K35: 2051 | L35: 10000 | M35: 1 | N35: 10000 | O35: 70000 | P35: 20619 | Q35: 4809 | R35: 5191 | S35: 3533408.2
J36: 34 | K36: 2052 | L36: 10000 | M36: 1 | N36: 10000 | O36: 70000 | P36: 20619 | Q36: 4809 | R36: 5191 | S36: 4051672.47
J37: 35 | K37: 2053 | L37: 10000 | M37: 1 | N37: 10000 | O37: 70000 | P37: 20619 | Q37: 4809 | R37: 5191 | S37: 4645081.61
J38: 36 | K38: 2054 | L38: 10000 | M38: 1 | N38: 10000 | O38: 70000 | P38: 20619 | Q38: 4809 | R38: 5191 | S38: 5324531.11
J39: 37 | K39: 2055 | L39: 10000 | M39: 1 | N39: 10000 | O39: 70000 | P39: 20619 | Q39: 4809 | R39: 5191 | S39: 6102496.26
J40: 38 | K40: 2056 | L40: 10000 | M40: 1 | N40: 10000 | O40: 70000 | P40: 20619 | Q40: 4809 | R40: 5191 | S40: 6993261.16
J41: 39 | K41: 2057 | L41: 10000 | M41: 1 | N41: 10000 | O41: 70000 | P41: 20619 | Q41: 4809 | R41: 5191 | S41: 8013181.03
J42: 40 | K42: 2058 | L42: 10000 | M42: 1 | N42: 10000 | O42: 70000 | P42: 20619 | Q42: 4809 | R42: 5191 | S42: 9180982.48
J43: 41 | K43: 2059 | L43: 10000 | M43: 1 | N43: 10000 | O43: 70000 | P43: 20619 | Q43: 4809 | R43: 5191 | S43: 10518107.35
J44: 42 | K44: 2060 | L44: 10000 | M44: 1 | N44: 10000 | O44: 70000 | P44: 20619 | Q44: 4809 | R44: 5191 | S44: 12049106.41
J45: 43 | K45: 2060 | L45: 10000 | M45: 1 | N45: 10000 | O45: 70000 | P45: 20619 | Q45: 4809 | R45: 5191 | S45: 13802090.12
J46: 44 | K46: 2060 | L46: 10000 | M46: 1 | N46: 10000 | O46: 70000 | P46: 20619 | Q46: 4809 | R46: 5191 | S46: 15809244.77
Q47: =SUM($Q$3:$Q$46) -> 211596 | R47: =SUM($R$3:$R$46) -> 228404 | S47: =ROUND(MAX($S$3:$S$46),0) -> 15809245

Sheet Steuerber22
B2: zu versteuerndes Einkommen | C2: ='EB ZZ'!W17+'EB ZZ'!W19 -> 80000 | K2: Beitragsjahr | L2: Beitrag | M2: absetzbar | N2: verm. zvE | O2: zvE | P2: Steuer neu ohne SolZ | Q2: Ersparnis mit SolZ | R2: Nettoaufwand | S2: Nettoaufwand verzinst
J3: 1 | K3: 2019 | L3: =IF(K3<$K$3+$C$10,$C$12,0) -> 11363.63636 | M3: 0.88 | N3: =IF(K3<$K$3+$C$10,L3*M3,0) -> 10000 | O3: =IF(K3<$K$3+$C$10,zvE-N3,0) -> 70000 | P3: =ROUNDDOWN(IF((O3/$D$6)<(9168+1),0,IF((O3/$D$6)<(14254+1),(980.14*(((O3/$D$6)-9169)/10000)+1400)*((O3/$D$6)-9168)/10000,IF((O3/$D$6)<(55960+1),(216.16*(((O3/$D$6)-14255)/10000)+2397)*((O3/$D$6)-14255)/10000+965.58,IF((O3/$D$6)<(265326+1),(O3/$D$6)*0.42-8780.9,(O3/$D$6)*0.45-16740.68)))),0)*$D$6 -> 20619 | Q3: =IF(K3<$K$3+$C$10,ROUNDDOWN(($C$32-P3)*(1.055+KiSt),2),0) -> 4809 | R3: =IF(K3<$K$3+$C$10,L3-Q3,0) -> 6554.636364 | S3: =IF(K3<$K$3+$C$10,ROUNDDOWN(R3*(1+$C$22),2),0) -> 7505.01 | U3: Jahr 2019
B4: Kirchensteuersatz | C4: ='St Ersp'!Z23 -> 0.09 | J4: 2 | K4: 2020 | L4: =IF(K4<$K$3+$C$10,$C$12,0) -> 11363.63636 | M4: 0.9 | N4: =IF(K4<$K$3+$C$10,L4*M4,0) -> 10227.27273 | O4: 69772.72727 | P4: =ROUNDDOWN(IF((O4/$D$6)<(9168+1),0,IF((O4/$D$6)<(14254+1),(980.14*(((O4/$D$6)-9169)/10000)+1400)*((O4/$D$6)-9168)/10000,IF((O4/$D$6)<(55960+1),(216.16*(((O4/$D$6)-14255)/10000)+2397)*((O4/$D$6)-14255)/10000+965.58,IF((O4/$D$6)<(265326+1),(O4/$D$6)*0.42-8780.9,(O4/$D$6)*0.45-16740.68)))),0)*$D$6 -> 20523 | Q4: 4918.92 | R4: =IF(K4<$K$3+$C$10,L4-Q4,0) -> 6444.716364 | S4: =IF(K4<$K$3+$C$10,ROUNDDOWN((R4+S3)*(1+$C$22),2),0) -> 15972.34 | U4: bis 9.168 Euro | V4: (Grundfreibetrag): 0
J5: 3 | K5: 2021 | L5: 11363.63636 | M5: 0.92 | N5: 10454.54545 | O5: 69545.45455 | P5: 20428 | Q5: 5027.69 | R5: 6335.946364 | S5: =IF(K5<$K$3+$C$10,ROUNDDOWN((R5+S4)*(1+$C$22),2),0) -> 25542.83 | U5: 9.168 Euro bis 14.254 Euro: | V5: ESt = (980.14 · Y + 1.400) · Y
B6: Familienstand | D6: =IF('St Ersp'!W25="Grundtabelle",1,2) -> 1 | J6: 4 | K6: 2022 | L6: 11363.63636 | M6: 0.94 | N6: 10681.81818 | O6: 69318.18182 | P6: 20332 | Q6: 5137.61 | R6: 6226.026364 | S6: 36375.12 | V6: Y = (zvE - 9.168) / 10.000
J7: 5 | K7: 2023 | L7: 11363.63636 | M7: 0.96 | N7: 10909.09091 | O7: 69090.90909 | P7: 20237 | Q7: 5246.39 | R7: 6117.246364 | S7: 48653.47 | U7: 14.255 Euro bis 55.960 Euro: | V7: ESt = (216.16 × Z + 2.397) × Z + 965.58
B8: Basisrente | J8: 6 | K8: 2024 | L8: 11363.63636 | M8: 0.98 | N8: 11136.36364 | O8: 68863.63636 | P8: 20141 | Q8: 5356.31 | R8: 6007.326364 | S8: 62586.24 | V8: Z = (zvE - 14.254) / 10.000
J9: 7 | K9: 2025 | L9: 11363.63636 | M9: 1 | N9: 11363.63636 | O9: 68636.36364 | P9: 20046 | Q9: 5465.08 | R9: 5898.556364 | S9: 78414.63 | U9: 54.950 Euro bis 265.326 Euro: | V9: ESt = 0,42 × zvE - 8780.9
B10: Laufzeit | C10: ='St Ersp'!Z19 -> 2019 | J10: 8 | K10: 2026 | L10: 11363.63636 | M10: 1 | N10: 11363.63636 | O10: 68636.36364 | P10: 20046 | Q10: 5465.08 | R10: 5898.556364 | S10: 96538.03 | U10: ab 265.327 Euro: | V10: ESt = 0,45 × zvE - 16740.68
J11: 9 | K11: 2027 | L11: 11363.63636 | M11: 1 | N11: 11363.63636 | O11: 68636.36364 | P11: 20046 | Q11: 5465.08 | R11: 5898.556364 | S11: 117289.2
B12: Jahresbeitrag | C12: ='EB ZZ'!W31 -> 11363.63636 | J12: 10 | K12: 2028 | L12: 11363.63636 | M12: 1 | N12: 11363.63636 | O12: 68636.36364 | P12: 20046 | Q12: 5465.08 | R12: 5898.556364 | S12: 141049.15 | U12: In §39b Absatz 2 Satz 7 zweiter Halbsatz wird die Angabe "10440" durch
J13: 11 | K13: 2029 | L13: 11363.63636 | M13: 1 | N13: 11363.63636 | O13: 68636.36364 | P13: 20046 | Q13: 5465.08 | R13: 5898.556364 | S13: 168254.14 | U13: die Angabe "10635" ersetzt.
B14: Beitragssumme = Garantie | C14: =C10*C12 -> 22943181.82 | J14: 12 | K14: 2030 | L14: 11363.63636 | M14: 1 | N14: 11363.63636 | O14: 68636.36364 | P14: 20046 | Q14: 5465.08 | R14: 5898.556364 | S14: 199403.67
J15: 13 | K15: 2031 | L15: 11363.63636 | M15: 1 | N15: 11363.63636 | O15: 68636.36364 | P15: 20046 | Q15: 5465.08 | R15: 5898.556364 | S15: 235069.67
J16: 14 | K16: 2032 | L16: 11363.63636 | M16: 1 | N16: 11363.63636 | O16: 68636.36364 | P16: 20046 | Q16: 5465.08 | R16: 5898.556364 | S16: 275907.01
J17: 15 | K17: 2033 | L17: 11363.63636 | M17: 1 | N17: 11363.63636 | O17: 68636.36364 | P17: 20046 | Q17: 5465.08 | R17: 5898.556364 | S17: 322665.49
B18: Steuerersparnis gesamt | C18: =Q47 -> 238168.96 | J18: 16 | K18: 2034 | L18: 11363.63636 | M18: 1 | N18: 11363.63636 | O18: 68636.36364 | P18: 20046 | Q18: 5465.08 | R18: 5898.556364 | S18: 376203.64
J19: 17 | K19: 2035 | L19: 11363.63636 | M19: 1 | N19: 11363.63636 | O19: 68636.36364 | P19: 20046 | Q19: 5465.08 | R19: 5898.556364 | S19: 437504.46
B20: Nettoeinzahlung gesamt | C20: =R47 -> 261831.04 | J20: 18 | K20: 2036 | L20: 11363.63636 | M20: 1 | N20: 11363.63636 | O20: 68636.36364 | P20: 20046 | Q20: 5465.08 | R20: 5898.556364 | S20: 507693.49
J21: 19 | K21: 2037 | L21: 11363.63636 | M21: 1 | N21: 11363.63636 | O21: 68636.36364 | P21: 20046 | Q21: 5465.08 | R21: 5898.556364 | S21: 588059.46
B22: Vergleichsverzinsung | C22: 0.1449933292 | J22: 20 | K22: 2038 | L22: 11363.63636 | M22: 1 | N22: 11363.63636 | O22: 68636.36364 | P22: 20046 | Q22: 5465.08 | R22: 5898.556364 | S22: 680077.96
J23: 21 | K23: 2039 | L23: 11363.63636 | M23: 1 | N23: 11363.63636 | O23: 68636.36364 | P23: 20046 | Q23: 5465.08 | R23: 5898.556364 | S23: 785438.53
J24: 22 | K24: 2040 | L24: 11363.63636 | M24: 1 | N24: 11363.63636 | O24: 68636.36364 | P24: 20046 | Q24: 5465.08 | R24: 5898.556364 | S24: 906075.68
J25: 23 | K25: 2041 | L25: 11363.63636 | M25: 1 | N25: 11363.63636 | O25: 68636.36364 | P25: 20046 | Q25: 5465.08 | R25: 5898.556364 | S25: 1044204.41
J26: 24 | K26: 2042 | L26: 11363.63636 | M26: 1 | N26: 11363.63636 | O26: 68636.36364 | P26: 20046 | Q26: 5465.08 | R26: 5898.556364 | S26: 1202360.89
J27: 25 | K27: 2043 | L27: 11363.63636 | M27: 1 | N27: 11363.63636 | O27: 68636.36364 | P27: 20046 | Q27: 5465.08 | R27: 5898.556364 | S27: 1383449
J28: 26 | K28: 2044 | L28: 11363.63636 | M28: 1 | N28: 11363.63636 | O28: 68636.36364 | P28: 20046 | Q28: 5465.08 | R28: 5898.556364 | S28: 1590793.68
J29: 27 | K29: 2045 | L29: 11363.63636 | M29: 1 | N29: 11363.63636 | O29: 68636.36364 | P29: 20046 | Q29: 5465.08 | R29: 5898.556364 | S29: 1828201.95
B30: Wert für Zielwertsuche | C30: =IF(C14>0,ROUND(C14/S47*10000,2),"") -> 12278.18 | J30: 28 | K30: 2046 | L30: 11363.63636 | M30: 1 | N30: 11363.63636 | O30: 68636.36364 | P30: 20046 | Q30: 5465.08 | R30: 5898.556364 | S30: 2100032.84
J31: 29 | K31: 2047 | L31: 11363.63636 | M31: 1 | N31: 11363.63636 | O31: 68636.36364 | P31: 20046 | Q31: 5465.08 | R31: 5898.556364 | S31: 2411277.4
B32: Steuer vor Basisrente ohne SolZ | C32: =ROUNDDOWN(IF((C2/D6)<(9168+1),0,IF((C2/D6)<(14254+1),(980.14*(((C2/D6)-9169)/10000)+1400)*((C2/D6)-9168)/10000,IF((C2/D6)<(55960+1),(216.16*(((C2/D6)-14255)/10000)+2397)*((C2/D6)-14255)/10000+965.58,IF((C2/D6)<(265326+1),(C2/D6)*0.42-8780.9,(C2/D6)*0.45-16740.68)))),0)*D6 -> 24819 | J32: 30 | K32: 2048 | L32: 11363.63636 | M32: 1 | N32: 11363.63636 | O32: 68636.36364 | P32: 20046 | Q32: 5465.08 | R32: 5898.556364 | S32: 2767650.34
J33: 31 | K33: 2049 | L33: 11363.63636 | M33: 1 | N33: 11363.63636 | O33: 68636.36364 | P33: 20046 | Q33: 5465.08 | R33: 5898.556364 | S33: 3175694.98
J34: 32 | K34: 2050 | L34: 11363.63636 | M34: 1 | N34: 11363.63636 | O34: 68636.36364 | P34: 20046 | Q34: 5465.08 | R34: 5898.556364 | S34: 3642903.37
J35: 33 | K35: 2051 | L35: 11363.63636 | M35: 1 | N35: 11363.63636 | O35: 68636.36364 | P35: 20046 | Q35: 5465.08 | R35: 5898.556364 | S35: 4177853.86
J36: 34 | K36: 2052 | L36: 11363.63636 | M36: 1 | N36: 11363.63636 | O36: 68636.36364 | P36: 20046 | Q36: 5465.08 | R36: 5898.556364 | S36: 4790368.6
J37: 35 | K37: 2053 | L37: 11363.63636 | M37: 1 | N37: 11363.63636 | O37: 68636.36364 | P37: 20046 | Q37: 5465.08 | R37: 5898.556364 | S37: 5491693.89
J38: 36 | K38: 2054 | L38: 11363.63636 | M38: 1 | N38: 11363.63636 | O38: 68636.36364 | P38: 20046 | Q38: 5465.08 | R38: 5898.556364 | S38: 6294706.67
J39: 37 | K39: 2055 | L39: 11363.63636 | M39: 1 | N39: 11363.63636 | O39: 68636.36364 | P39: 20046 | Q39: 5465.08 | R39: 5898.556364 | S39: 7214150.95
J40: 38 | K40: 2056 | L40: 11363.63636 | M40: 1 | N40: 11363.63636 | O40: 68636.36364 | P40: 20046 | Q40: 5465.08 | R40: 5898.556364 | S40: 8266908.52
J41: 39 | K41: 2057 | L41: 11363.63636 | M41: 1 | N41: 11363.63636 | O41: 68636.36364 | P41: 20046 | Q41: 5465.08 | R41: 5898.556364 | S41: 9472308.91
J42: 40 | K42: 2058 | L42: 11363.63636 | M42: 1 | N42: 11363.63636 | O42: 68636.36364 | P42: 20046 | Q42: 5465.08 | R42: 5898.556364 | S42: 10852484.32
J43: 41 | K43: 2059 | L43: 11363.63636 | M43: 1 | N43: 11363.63636 | O43: 68636.36364 | P43: 20046 | Q43: 5465.08 | R43: 5898.556364 | S43: 12432775.95
J44: 42 | K44: 2060 | L44: 11363.63636 | M44: 1 | N44: 11363.63636 | O44: 68636.36364 | P44: 20046 | Q44: 5465.08 | R44: 5898.556364 | S44: 14242199.33
J45: 43 | K45: 2060 | L45: 11363.63636 | M45: 1 | N45: 11363.63636 | O45: 68636.36364 | P45: 20046 | Q45: 5465.08 | R45: 5898.556364 | S45: 16313977.03
J46: 44 | K46: 2060 | L46: 11363.63636 | M46: 1 | N46: 11363.63636 | O46: 68636.36364 | P46: 20046 | Q46: 5465.08 | R46: 5898.556364 | S46: 18686148.67
J47: 45 | Q47: =SUM($Q$3:$Q$46) -> 238168.96 | R47: =SUM($R$3:$R$46) -> 261831.04 | S47: =ROUND(MAX($S$3:$S$46),0) -> 18686149

Sheet Steuerber3
B2: zu versteuerndes Einkommen | C2: =Rend!W25 -> 70000 | K2: Beitragsjahr | L2: Beitrag | M2: absetzbar | N2: verm. zvE | O2: zvE | P2: Steuer neu ohne SolZ | Q2: Ersparnis mit SolZ | R2: Nettoaufwand | S2: Nettoaufwand verzinst
J3: 1 | K3: 2019 | L3: =IF(K3<$K$3+$C$10,$C$12,0) -> 1200 | M3: 0.88 | N3: =IF(K3<$K$3+$C$10,L3*M3,0) -> 1056 | O3: =IF(K3<$K$3+$C$10,zvE-N3,0) -> 68944 | P3: =ROUNDDOWN(IF((O3/$D$6)<(9168+1),0,IF((O3/$D$6)<(14254+1),(980.14*(((O3/$D$6)-9169)/10000)+1400)*((O3/$D$6)-9168)/10000,IF((O3/$D$6)<(55960+1),(216.16*(((O3/$D$6)-14255)/10000)+2397)*((O3/$D$6)-14255)/10000+965.58,IF((O3/$D$6)<(265326+1),(O3/$D$6)*0.42-8780.9,(O3/$D$6)*0.45-16740.68)))),0)*$D$6 -> 20175 | Q3: =IF(K3<$K$3+$C$10,ROUNDDOWN(($C$32-P3)*(1.055+KiSt),2),0) -> 508.38 | R3: =IF(K3<$K$3+$C$10,L3-Q3,0) -> 691.62 | S3: =IF(K3<$K$3+$C$10,ROUNDDOWN(R3*(1+$C$22),2),0) -> 708.26 | U3: Jahr 2019
B4: Kirchensteuersatz | C4: =Rend!Z27 -> 0.09 | J4: 2 | K4: 2020 | L4: =IF(K4<$K$3+$C$10,$C$12,0) -> 1200 | M4: 0.9 | N4: =IF(K4<$K$3+$C$10,L4*M4,0) -> 1080 | O4: 68920 | P4: =ROUNDDOWN(IF((O4/$D$6)<(9168+1),0,IF((O4/$D$6)<(14254+1),(980.14*(((O4/$D$6)-9169)/10000)+1400)*((O4/$D$6)-9168)/10000,IF((O4/$D$6)<(55960+1),(216.16*(((O4/$D$6)-14255)/10000)+2397)*((O4/$D$6)-14255)/10000+965.58,IF((O4/$D$6)<(265326+1),(O4/$D$6)*0.42-8780.9,(O4/$D$6)*0.45-16740.68)))),0)*$D$6 -> 20165 | Q4: 519.83 | R4: =IF(K4<$K$3+$C$10,L4-Q4,0) -> 680.17 | S4: =IF(K4<$K$3+$C$10,ROUNDDOWN((R4+S3)*(1+$C$22),2),0) -> 1421.83 | U4: bis 9.168 Euro | V4: (Grundfreibetrag): 0
J5: 3 | K5: 2021 | L5: 1200 | M5: 0.92 | N5: 1104 | O5: 68896 | P5: 20155 | Q5: 531.28 | R5: 668.72 | S5: =IF(K5<$K$3+$C$10,ROUNDDOWN((R5+S4)*(1+$C$22),2),0) -> 2140.85 | U5: 9.168 Euro bis 14.254 Euro: | V5: ESt = (980.14 · Y + 1.400) · Y
B6: Familienstand | D6: =IF(Rend!W29="Grundtabelle",1,2) -> 1 | J6: 4 | K6: 2022 | L6: 1200 | M6: 0.94 | N6: 1128 | O6: 68872 | P6: 20145 | Q6: 542.73 | R6: 657.27 | S6: 2865.44 | V6: Y = (zvE - 9.168) / 10.000
J7: 5 | K7: 2023 | L7: 1200 | M7: 0.96 | N7: 1152 | O7: 68848 | P7: 20135 | Q7: 554.18 | R7: 645.82 | S7: 3595.74 | U7: 14.255 Euro bis 55.960 Euro: | V7: ESt = (216.16 × Z + 2.397) × Z + 965.58
B8: Basisrente | J8: 6 | K8: 2024 | L8: 1200 | M8: 0.98 | N8: 1176 | O8: 68824 | P8: 20125 | Q8: 565.63 | R8: 634.37 | S8: 4331.89 | V8: Z = (zvE - 14.254) / 10.000
J9: 7 | K9: 2025 | L9: 1200 | M9: 1 | N9: 1200 | O9: 68800 | P9: 20115 | Q9: 577.08 | R9: 622.92 | S9: 5074.03 | U9: 54.950 Euro bis 265.326 Euro: | V9: ESt = 0,42 × zvE - 8780.9
B10: Laufzeit | C10: =Rend!Z19 -> 32 | J10: 8 | K10: 2026 | L10: 1200 | M10: 1 | N10: 1200 | O10: 68800 | P10: 20115 | Q10: 577.08 | R10: 622.92 | S10: 5834.02 | U10: ab 265.327 Euro: | V10: ESt = 0,45 × zvE - 16740.68
J11: 9 | K11: 2027 | L11: 1200 | M11: 1 | N11: 1200 | O11: 68800 | P11: 20115 | Q11: 577.08 | R11: 622.92 | S11: 6612.3
B12: Jahresbeitrag | C12: =Rend!W17 -> 1200 | J12: 10 | K12: 2028 | L12: 1200 | M12: 1 | N12: 1200 | O12: 68800 | P12: 20115 | Q12: 577.08 | R12: 622.92 | S12: 7409.31 | U12: In §39b Absatz 2 Satz 7 zweiter Halbsatz wird die Angabe "10440" durch
J13: 11 | K13: 2029 | L13: 1200 | M13: 1 | N13: 1200 | O13: 68800 | P13: 20115 | Q13: 577.08 | R13: 622.92 | S13: 8225.49 | U13: die Angabe "10635" ersetzt.
B14: Beitragssumme = Garantie | C14: =Rend!W23 -> 30720 | J14: 12 | K14: 2030 | L14: 1200 | M14: 1 | N14: 1200 | O14: 68800 | P14: 20115 | Q14: 577.08 | R14: 622.92 | S14: 9061.31
J15: 13 | K15: 2031 | L15: 1200 | M15: 1 | N15: 1200 | O15: 68800 | P15: 20115 | Q15: 577.08 | R15: 622.92 | S15: 9917.24
J16: 14 | K16: 2032 | L16: 1200 | M16: 1 | N16: 1200 | O16: 68800 | P16: 20115 | Q16: 577.08 | R16: 622.92 | S16: 10793.77
J17: 15 | K17: 2033 | L17: 1200 | M17: 1 | N17: 1200 | O17: 68800 | P17: 20115 | Q17: 577.08 | R17: 622.92 | S17: 11691.39
B18: Steuerersparnis gesamt | C18: =Q48 -> 18226.11 | J18: 16 | K18: 2034 | L18: 1200 | M18: 1 | N18: 1200 | O18: 68800 | P18: 20115 | Q18: 577.08 | R18: 622.92 | S18: 12610.61
J19: 17 | K19: 2035 | L19: 1200 | M19: 1 | N19: 1200 | O19: 68800 | P19: 20115 | Q19: 577.08 | R19: 622.92 | S19: 13551.95
B20: Nettoeinzahlung gesamt | C20: =R48 -> 20173.89 | J20: 18 | K20: 2036 | L20: 1200 | M20: 1 | N20: 1200 | O20: 68800 | P20: 20115 | Q20: 577.08 | R20: 622.92 | S20: 14515.94
J21: 19 | K21: 2037 | L21: 1200 | M21: 1 | N21: 1200 | O21: 68800 | P21: 20115 | Q21: 577.08 | R21: 622.92 | S21: 15503.12
B22: Vergleichsverzinsung | C22: 0.02406161167 | J22: 20 | K22: 2038 | L22: 1200 | M22: 1 | N22: 1200 | O22: 68800 | P22: 20115 | Q22: 577.08 | R22: 622.92 | S22: 16514.05
J23: 21 | K23: 2039 | L23: 1200 | M23: 1 | N23: 1200 | O23: 68800 | P23: 20115 | Q23: 577.08 | R23: 622.92 | S23: 17549.31
J24: 22 | K24: 2040 | L24: 1200 | M24: 1 | N24: 1200 | O24: 68800 | P24: 20115 | Q24: 577.08 | R24: 622.92 | S24: 18609.48
J25: 23 | K25: 2041 | L25: 1200 | M25: 1 | N25: 1200 | O25: 68800 | P25: 20115 | Q25: 577.08 | R25: 622.92 | S25: 19695.16
J26: 24 | K26: 2042 | L26: 1200 | M26: 1 | N26: 1200 | O26: 68800 | P26: 20115 | Q26: 577.08 | R26: 622.92 | S26: 20806.96
J27: 25 | K27: 2043 | L27: 1200 | M27: 1 | N27: 1200 | O27: 68800 | P27: 20115 | Q27: 577.08 | R27: 622.92 | S27: 21945.51
J28: 26 | K28: 2044 | L28: 1200 | M28: 1 | N28: 1200 | O28: 68800 | P28: 20115 | Q28: 577.08 | R28: 622.92 | S28: 23111.46
J29: 27 | K29: 2045 | L29: 1200 | M29: 1 | N29: 1200 | O29: 68800 | P29: 20115 | Q29: 577.08 | R29: 622.92 | S29: 24305.46
B30: Wert für Zielwertsuche | C30: =IF(C14>0,ROUND(C14/S48*10000,2),"") -> 10000 | J30: 28 | K30: 2046 | L30: 1200 | M30: 1 | N30: 1200 | O30: 68800 | P30: 20115 | Q30: 577.08 | R30: 622.92 | S30: 25528.19
J31: 29 | K31: 2047 | L31: 1200 | M31: 1 | N31: 1200 | O31: 68800 | P31: 20115 | Q31: 577.08 | R31: 622.92 | S31: 26780.34
B32: Steuer vor Basisrente ohne SolZ | C32: =ROUNDDOWN(IF((C2/D6)<(9168+1),0,IF((C2/D6)<(14254+1),(980.14*(((C2/D6)-9169)/10000)+1400)*((C2/D6)-9168)/10000,IF((C2/D6)<(55960+1),(216.16*(((C2/D6)-14255)/10000)+2397)*((C2/D6)-14255)/10000+965.58,IF((C2/D6)<(265326+1),(C2/D6)*0.42-8780.9,(C2/D6)*0.45-16740.68)))),0)*D6 -> 20619 | J32: 30 | K32: 2048 | L32: 1200 | M32: 1 | N32: 1200 | O32: 68800 | P32: 20115 | Q32: 577.08 | R32: 622.92 | S32: 28062.62
J33: 31 | K33: 2049 | L33: 1200 | M33: 1 | N33: 1200 | O33: 68800 | P33: 20115 | Q33: 577.08 | R33: 622.92 | S33: 29375.76
J34: 32 | K34: 2050 | L34: 1200 | M34: 1 | N34: 1200 | O34: 68800 | P34: 20115 | Q34: 577.08 | R34: 622.92 | S34: 30720.49
J35: 33 | K35: 2051 | L35: 0 | M35: 1 | N35: 0 | O35: 0 | P35: 0 | Q35: 0 | R35: 0 | S35: 0
J36: 34 | K36: 2052 | L36: 0 | M36: 1 | N36: 0 | O36: 0 | P36: 0 | Q36: 0 | R36: 0 | S36: 0
J37: 35 | K37: 2053 | L37: 0 | M37: 1 | N37: 0 | O37: 0 | P37: 0 | Q37: 0 | R37: 0 | S37: 0
J38: 36 | K38: 2054 | L38: 0 | M38: 1 | N38: 0 | O38: 0 | P38: 0 | Q38: 0 | R38: 0 | S38: 0
J39: 37 | K39: 2055 | L39: 0 | M39: 1 | N39: 0 | O39: 0 | P39: 0 | Q39: 0 | R39: 0 | S39: 0
J40: 38 | K40: 2056 | L40: 0 | M40: 1 | N40: 0 | O40: 0 | P40: 0 | Q40: 0 | R40: 0 | S40: 0
J41: 39 | K41: 2057 | L41: 0 | M41: 1 | N41: 0 | O41: 0 | P41: 0 | Q41: 0 | R41: 0 | S41: 0
J42: 40 | K42: 2058 | L42: 0 | M42: 1 | N42: 0 | O42: 0 | P42: 0 | Q42: 0 | R42: 0 | S42: 0
J43: 41 | K43: 2059 | L43: 0 | M43: 1 | N43: 0 | O43: 0 | P43: 0 | Q43: 0 | R43: 0 | S43: 0
J44: 42 | K44: 2060 | L44: 0 | M44: 1 | N44: 0 | O44: 0 | P44: 0 | Q44: 0 | R44: 0 | S44: 0
J45: 43 | K45: 2061 | L45: 0 | M45: 1 | N45: 0 | O45: 0 | P45: 0 | Q45: 0 | R45: 0 | S45: 0
J46: 44 | K46: 2061 | L46: 0 | M46: 1 | N46: 0 | O46: 0 | P46: 0 | Q46: 0 | R46: 0 | S46: 0
J47: 45 | K47: 2061 | L47: 0 | M47: 1 | N47: 0 | O47: 0 | P47: 0 | Q47: 0 | R47: 0 | S47: 0
Q48: =SUM($Q$3:$Q$47) -> 18226.11 | R48: =SUM($R$3:$R$47) -> 20173.89 | S48: =ROUND(MAX($S$3:$S$47),0) -> 30720
